{"text_format":"3","workbook":"xlsx","n_sheets":10,"sheets":["Introduction","Physical_Characteristics","Trace Metals & Organotins","PAH","Organohalogens","PR_Details","Laboratory 1 Details","Laboratory 2 Details","Laboratory 3 Details","Sheet1"],"not_rendered":{"images":1},"read":"whole","date_system":"1900"}

{"sheet":"Introduction","index":0,"n_rows":27,"n_cols":2,"rows_kept":27}
[]
[null,"ab"]
[]
[null,"Pre-disposal Sampling Results Form "]
[null,"Version 2 - June 2017"]
[]
[]
[]
[]
[null,"This form should be used to submit the results from your pre-disposal sampling plan.\nFull information must be provided in all relevant sheets of this workbook. The blue cells in each worksheet indicate where information can be entered.  \nWhere information cannot be provided, or where there are more than 30 samples required, please contact the Marine Scotland - Licensing Operations Team (MS-LOT) using the contact details below."]
[]
[null,"Once you have completed this form, send it (including any reference number for the dredging and sea disposal marine licence application in the subject header of your email) to the following email address:"]
[null,"ms.marinelicensing@gov.scot "]
[]
[]
[]
[]
[]
[null,"If you have any questions in relation to this form contact MS-LOT:"]
[]
[null,"Marine Scotland - Licensing Operations Team"]
[null,"Marine Laboratory"]
[null,"375 Victoria Road"]
[null,"Aberdeen, AB11 9DB"]
[]
[null,"01224 295579"]
[null,"ms.marinelicensing@gov.scot "]

{"sheet":"Physical_Characteristics","index":1,"n_rows":48,"n_cols":33,"rows_kept":48,"merged":[[2,1,2,5],[2,6,2,23],[2,24,2,25],[3,1,3,5],[3,6,3,23],[3,24,3,25],[4,1,4,5],[4,6,4,23],[4,24,4,25],[8,1,13,32],[16,1,17,1],[16,2,17,2],[16,3,17,12],[16,13,17,23],[16,24,17,24],[16,25,17,25],[16,26,17,26],[16,27,17,27],[16,28,17,28],[16,29,17,29],[16,30,17,30],[16,31,17,31],[16,32,17,32]]}
[null,"Applicant Information"]
[]
[null,"Applicant:",{"$nulls":4},"The Highland Council (THC)"]
[null,"Description of dredging:",{"$nulls":4},"New Disposal Site-Samples adjacent/within dredged pockets"]
[null,"Total amount to be dredged (wet tonnes)",{"$nulls":4},{"v":55426,"d":"55,426"}]
[]
[null,"Sample Details & Physical Properties"]
[]
[null,"Explanatory Notes:\nAn example of a 'Dredge area' is: 'Dock A, Harbour X' \nProvide description of the dredge area and the latitude and longitude co-oridnates (WGS84) for each sample location.  Co-ordinates taken from GPS equipment should be set to WGS84.\nNote for sample depth that the seabed is 0 metres.\nGravel is defined as >2mm, Sand is defined as >63um<2mm, Silt is deinfed as <63um)."]
[]
[]
[]
[]
[]
[]
[null,"Sample information:"]
[null,"Sample ID","Dredge area","Latitude",{"$nulls":9},"Longitude",{"$nulls":10},"Type of sample ","Sample depth\n(m)","Total solids\n(%)","Gravel\n(%)","Sand\n(%)","Silt\n(%)","TOC\n(%)","Specific gravity","Asbestos"]
[]
[null,"DS4","Dredged pocket",5,7,"°",3,5,".",0,5,8,"ˈN",null,null,6,"°",2,2,".",3,2,7,"ˈW","Core","0.0m -0.33m",73.4,5.7,87.2,7.2,0.54]
[null,"DS4","Dredged pocket",5,7,"°",3,5,".",0,5,8,"ˈN",null,null,6,"°",2,2,".",3,2,7,"ˈW","Core","0.33m - 0.66m",75.8,3.6,86.2,10.2,0.42]
[null,"DS4","Dredged pocket",5,7,"°",3,5,".",0,5,8,"ˈN",null,null,6,"°",2,2,".",3,2,7,"ˈW","Core","0.66m-1.0m",73.4,64,31.7,4.3,0.3]
[null,"DS3","Adjacent to dredged pocket",5,7,"°",3,5,".",1,7,0,"ˈN",null,null,6,"°",2,2,".",4,6,3,"ˈW","Core","0.0m-0.5m",55.9,4.4,39.9,55.7,3.53]
[null,"DS3","Adjacent to dredged pocket",5,7,"°",3,5,".",1,7,0,"ˈN",null,null,6,"°",2,2,".",4,6,3,"ˈW","Core","0.5m-1.0m",57,18,26,56,2.61]
[null,"DS3","Adjacent to dredged pocket",5,7,"°",3,5,".",1,7,0,"ˈN",null,null,6,"°",2,2,".",4,6,3,"ˈW","Core","1.0m-1.5m",72.6,28,49.1,22.9,0.39]
[null,"DS5","Adjacent to dredged pocket",5,7,"°",3,5,".",1,6,7,"ˈN",null,null,6,"°",2,2,".",4,0,8,"ˈW","Core","0.0m-0.4m",56.6,5.3,54.5,40.1,2.11]
[null,"DS5","Adjacent to dredged pocket",5,7,"°",3,5,".",1,6,7,"ˈN",null,null,6,"°",2,2,".",4,0,8,"ˈW","Core","0.4m-0.9m",60.3,2.8,61.3,35.9,1.63]
[null,"DS5","Adjacent to dredged pocket",5,7,"°",3,5,".",1,6,7,"ˈN",null,null,6,"°",2,2,".",4,0,8,"ˈW","Core","0.9m-1.4m",70.8,1.9,50.2,47.9,0.74]
[{"$nulls":5},"°",null,null,".",{"$nulls":3},"ˈN",{"$nulls":3},"°",null,null,".",{"$nulls":3},"ˈW"]
[{"$nulls":5},"°",null,null,".",{"$nulls":3},"ˈN",{"$nulls":3},"°",null,null,".",{"$nulls":3},"ˈW"]
[{"$nulls":5},"°",null,null,".",{"$nulls":3},"ˈN",{"$nulls":3},"°",null,null,".",{"$nulls":3},"ˈW"]
[{"$nulls":5},"°",null,null,".",{"$nulls":3},"ˈN",{"$nulls":3},"°",null,null,".",{"$nulls":3},"ˈW"]
[{"$nulls":5},"°",null,null,".",{"$nulls":3},"ˈN",{"$nulls":3},"°",null,null,".",{"$nulls":3},"ˈW"]
[{"$nulls":5},"°",null,null,".",{"$nulls":3},"ˈN",{"$nulls":3},"°",null,null,".",{"$nulls":3},"ˈW"]
[{"$nulls":5},"°",null,null,".",{"$nulls":3},"ˈN",{"$nulls":3},"°",null,null,".",{"$nulls":3},"ˈW"]
[{"$nulls":5},"°",null,null,".",{"$nulls":3},"ˈN",{"$nulls":3},"°",null,null,".",{"$nulls":3},"ˈW"]
[{"$nulls":5},"°",null,null,".",{"$nulls":3},"ˈN",{"$nulls":3},"°",null,null,".",{"$nulls":3},"ˈW"]
[{"$nulls":5},"°",null,null,".",{"$nulls":3},"ˈN",{"$nulls":3},"°",null,null,".",{"$nulls":3},"ˈW"]
[{"$nulls":5},"°",null,null,".",{"$nulls":3},"ˈN",{"$nulls":3},"°",null,null,".",{"$nulls":3},"ˈW"]
[{"$nulls":5},"°",null,null,".",{"$nulls":3},"ˈN",{"$nulls":3},"°",null,null,".",{"$nulls":3},"ˈW"]
[{"$nulls":5},"°",null,null,".",{"$nulls":3},"ˈN",{"$nulls":3},"°",null,null,".",{"$nulls":3},"ˈW"]
[{"$nulls":5},"°",null,null,".",{"$nulls":3},"ˈN",{"$nulls":3},"°",null,null,".",{"$nulls":3},"ˈW"]
[{"$nulls":5},"°",null,null,".",{"$nulls":3},"ˈN",{"$nulls":3},"°",null,null,".",{"$nulls":3},"ˈW"]
[{"$nulls":5},"°",null,null,".",{"$nulls":3},"ˈN",{"$nulls":3},"°",null,null,".",{"$nulls":3},"ˈW"]
[{"$nulls":5},"°",null,null,".",{"$nulls":3},"ˈN",{"$nulls":3},"°",null,null,".",{"$nulls":3},"ˈW"]
[{"$nulls":5},"°",null,null,".",{"$nulls":3},"ˈN",{"$nulls":3},"°",null,null,".",{"$nulls":3},"ˈW"]
[{"$nulls":5},"°",null,null,".",{"$nulls":3},"ˈN",{"$nulls":3},"°",null,null,".",{"$nulls":3},"ˈW"]
[{"$nulls":5},"°",null,null,".",{"$nulls":3},"ˈN",{"$nulls":3},"°",null,null,".",{"$nulls":3},"ˈW"]
[{"$nulls":5},"°",null,null,".",{"$nulls":3},"ˈN",{"$nulls":3},"°",null,null,".",{"$nulls":3},"ˈW"]

{"sheet":"Trace Metals & Organotins","index":2,"n_rows":39,"n_cols":15,"rows_kept":39,"merged":[[2,1,4,11],[7,1,8,1],[7,2,8,2],[7,3,8,3],[7,4,8,4],[8,5,8,14]]}
[null,"Trace Metals & Organotins"]
[]
[null,"Explanatory Notes:\nResults above Action Level 1 will be highlighted in blue and above Action Level 2 in red.\n"]
[]
[]
[]
[null,"Sample information:"]
[null,"Sample ID","Dredge area","Type of sample ","Sample depth\n(m)","Arsenic (As)","Cadmium (Cd)","Chromium (Cr)","Copper (Cu)","Mercury (Hg)","Nickel (Ni)","Lead (Pb)","Zinc (Zn)","Dibutyltin (DBT)","Tributyltin (TBT)"]
[{"$nulls":5},"mg/kg dry weight"]
[null,{"$f":"Physical_Characteristics!B19","v":"DS4"},{"$f":"Physical_Characteristics!C19","v":"Dredged pocket"},{"$f":"Physical_Characteristics!Y19","v":"Core"},{"$f":"Physical_Characteristics!Z19","v":"0.0m -0.33m"},4.1,0.11,52.5,30.5,0.04,84.7,6.2,59.1,"<0.001",1E-3]
[null,{"$f":"Physical_Characteristics!B20","v":"DS4"},{"$f":"Physical_Characteristics!C20","v":"Dredged pocket"},{"$f":"Physical_Characteristics!Y20","v":"Core"},{"$f":"Physical_Characteristics!Z20","v":"0.33m - 0.66m"},5.2,0.08,56.6,24,0.02,80.2,5.1,49.5,"<0.001","<0.001"]
[null,{"$f":"Physical_Characteristics!B21","v":"DS4"},{"$f":"Physical_Characteristics!C21","v":"Dredged pocket"},{"$f":"Physical_Characteristics!Y21","v":"Core"},{"$f":"Physical_Characteristics!Z21","v":"0.66m-1.0m"},5.7,0.13,73.8,41.6,"<0.01",107.3,3.3,63.5,"<0.001","<0.001"]
[null,{"$f":"Physical_Characteristics!B22","v":"DS3"},{"$f":"Physical_Characteristics!C22","v":"Adjacent to dredged pocket"},{"$f":"Physical_Characteristics!Y22","v":"Core"},{"$f":"Physical_Characteristics!Z22","v":"0.0m-0.5m"},9.3,0.32,65.4,126.2,0.07,111.6,28,210,0.089,0.211]
[null,{"$f":"Physical_Characteristics!B23","v":"DS3"},{"$f":"Physical_Characteristics!C23","v":"Adjacent to dredged pocket"},{"$f":"Physical_Characteristics!Y23","v":"Core"},{"$f":"Physical_Characteristics!Z23","v":"0.5m-1.0m"},8.5,0.37,73.8,111.5,0.13,133.9,27.9,170,0.258,0.213]
[null,{"$f":"Physical_Characteristics!B24","v":"DS3"},{"$f":"Physical_Characteristics!C24","v":"Adjacent to dredged pocket"},{"$f":"Physical_Characteristics!Y24","v":"Core"},{"$f":"Physical_Characteristics!Z24","v":"1.0m-1.5m"},10.4,0.17,83.6,68.2,"<0.01",176.7,5.2,97.2,"<0.005","<0.005"]
[null,{"$f":"Physical_Characteristics!B25","v":"DS5"},{"$f":"Physical_Characteristics!C25","v":"Adjacent to dredged pocket"},{"$f":"Physical_Characteristics!Y25","v":"Core"},{"$f":"Physical_Characteristics!Z25","v":"0.0m-0.4m"},7.9,0.43,72,2260,0.05,118,22.1,899,0.015,0.05]
[null,{"$f":"Physical_Characteristics!B26","v":"DS5"},{"$f":"Physical_Characteristics!C26","v":"Adjacent to dredged pocket"},{"$f":"Physical_Characteristics!Y26","v":"Core"},{"$f":"Physical_Characteristics!Z26","v":"0.4m-0.9m"},8.5,0.26,72.5,226.6,0.03,127.8,15,202,"<0.005","<0.005"]
[null,{"$f":"Physical_Characteristics!B27","v":"DS5"},{"$f":"Physical_Characteristics!C27","v":"Adjacent to dredged pocket"},{"$f":"Physical_Characteristics!Y27","v":"Core"},{"$f":"Physical_Characteristics!Z27","v":"0.9m-1.4m"},9.5,0.19,91.6,63.6,"<0.01",162.5,5.9,101,"<0.005","<0.005"]
[null,{"$f":"Physical_Characteristics!B28","v":0},{"$f":"Physical_Characteristics!C28","v":0},{"$f":"Physical_Characteristics!Y28","v":0},{"$f":"Physical_Characteristics!Z28","v":0}]
[null,{"$f":"Physical_Characteristics!B29","v":0},{"$f":"Physical_Characteristics!C29","v":0},{"$f":"Physical_Characteristics!Y29","v":0},{"$f":"Physical_Characteristics!Z29","v":0}]
[null,{"$f":"Physical_Characteristics!B30","v":0},{"$f":"Physical_Characteristics!C30","v":0},{"$f":"Physical_Characteristics!Y30","v":0},{"$f":"Physical_Characteristics!Z30","v":0}]
[null,{"$f":"Physical_Characteristics!B31","v":0},{"$f":"Physical_Characteristics!C31","v":0},{"$f":"Physical_Characteristics!Y31","v":0},{"$f":"Physical_Characteristics!Z31","v":0}]
[null,{"$f":"Physical_Characteristics!B32","v":0},{"$f":"Physical_Characteristics!C32","v":0},{"$f":"Physical_Characteristics!Y32","v":0},{"$f":"Physical_Characteristics!Z32","v":0}]
[null,{"$f":"Physical_Characteristics!B33","v":0},{"$f":"Physical_Characteristics!C33","v":0},{"$f":"Physical_Characteristics!Y33","v":0},{"$f":"Physical_Characteristics!Z33","v":0}]
[null,{"$f":"Physical_Characteristics!B34","v":0},{"$f":"Physical_Characteristics!C34","v":0},{"$f":"Physical_Characteristics!Y34","v":0},{"$f":"Physical_Characteristics!Z34","v":0}]
[null,{"$f":"Physical_Characteristics!B35","v":0},{"$f":"Physical_Characteristics!C35","v":0},{"$f":"Physical_Characteristics!Y35","v":0},{"$f":"Physical_Characteristics!Z35","v":0}]
[null,{"$f":"Physical_Characteristics!B36","v":0},{"$f":"Physical_Characteristics!C36","v":0},{"$f":"Physical_Characteristics!Y36","v":0},{"$f":"Physical_Characteristics!Z36","v":0}]
[null,{"$f":"Physical_Characteristics!B37","v":0},{"$f":"Physical_Characteristics!C37","v":0},{"$f":"Physical_Characteristics!Y37","v":0},{"$f":"Physical_Characteristics!Z37","v":0}]
[null,{"$f":"Physical_Characteristics!B38","v":0},{"$f":"Physical_Characteristics!C38","v":0},{"$f":"Physical_Characteristics!Y38","v":0},{"$f":"Physical_Characteristics!Z38","v":0}]
[null,{"$f":"Physical_Characteristics!B39","v":0},{"$f":"Physical_Characteristics!C39","v":0},{"$f":"Physical_Characteristics!Y39","v":0},{"$f":"Physical_Characteristics!Z39","v":0}]
[null,{"$f":"Physical_Characteristics!B40","v":0},{"$f":"Physical_Characteristics!C40","v":0},{"$f":"Physical_Characteristics!Y40","v":0},{"$f":"Physical_Characteristics!Z40","v":0}]
[null,{"$f":"Physical_Characteristics!B41","v":0},{"$f":"Physical_Characteristics!C41","v":0},{"$f":"Physical_Characteristics!Y41","v":0},{"$f":"Physical_Characteristics!Z41","v":0}]
[null,{"$f":"Physical_Characteristics!B42","v":0},{"$f":"Physical_Characteristics!C42","v":0},{"$f":"Physical_Characteristics!Y42","v":0},{"$f":"Physical_Characteristics!Z42","v":0}]
[null,{"$f":"Physical_Characteristics!B43","v":0},{"$f":"Physical_Characteristics!C43","v":0},{"$f":"Physical_Characteristics!Y43","v":0},{"$f":"Physical_Characteristics!Z43","v":0}]
[null,{"$f":"Physical_Characteristics!B44","v":0},{"$f":"Physical_Characteristics!C44","v":0},{"$f":"Physical_Characteristics!Y44","v":0},{"$f":"Physical_Characteristics!Z44","v":0}]
[null,{"$f":"Physical_Characteristics!B45","v":0},{"$f":"Physical_Characteristics!C45","v":0},{"$f":"Physical_Characteristics!Y45","v":0},{"$f":"Physical_Characteristics!Z45","v":0}]
[null,{"$f":"Physical_Characteristics!B46","v":0},{"$f":"Physical_Characteristics!C46","v":0},{"$f":"Physical_Characteristics!Y46","v":0},{"$f":"Physical_Characteristics!Z46","v":0}]
[null,{"$f":"Physical_Characteristics!B47","v":0},{"$f":"Physical_Characteristics!C47","v":0},{"$f":"Physical_Characteristics!Y47","v":0},{"$f":"Physical_Characteristics!Z47","v":0}]
[null,{"$f":"Physical_Characteristics!B48","v":0},{"$f":"Physical_Characteristics!C48","v":0},{"$f":"Physical_Characteristics!Y48","v":0},{"$f":"Physical_Characteristics!Z48","v":0}]

{"sheet":"PAH","index":3,"n_rows":64,"n_cols":28,"rows_kept":64,"merged":[[2,1,4,11],[32,1,33,1],[32,2,33,2],[32,3,33,3],[32,4,33,4],[32,5,32,27]]}
[null,"Polyaromatic Hydrocarbons (PAH)"]
[]
[null,"Explanatory Notes:\nResults above Action Level 1 will be highlighted in blue\n"]
[]
[]
[]
[null,"Definitions:"]
[null,"ACENAPTH","Acenaphthene"]
[null,"ACENAPHY","Acenaphthylene"]
[null,"ANTHRACN","Anthracene"]
[null,"BAA","Benz(a)anthracene"]
[null,"BAP","Benzo(a)pyrene"]
[null,"BBF","Benzo(b)fluoranthene"]
[null,"BEP","Benzo(e)pyrene"]
[null,"BENZGHIP","Benzo(ghi)perylene"]
[null,"BKF","Benzo(K)fluoranthene"]
[null,"C1N","C1-naphthalenes"]
[null,"C1PHEN","C1-phenanthrene"]
[null,"C2N","C2-naphthalenes"]
[null,"C3N","C3-naphthalenes"]
[null,"CHRYSENE","Chrysene"]
[null,"DBENZAH","Diben(ah)anthracene"]
[null,"FLUORANT","Fluoranthene"]
[null,"FLUORENE","Fluorene"]
[null,"INDPYR","Indeno(1,2,3-cd)pyrene"]
[null,"NAPTH","Naphthalene"]
[null,"PERYLENE","Perylene"]
[null,"PHENANT","Phenanthrene"]
[null,"PYRENE","Pyrene"]
[null,"THC","Total Hydrocarbon Content"]
[]
[null,"Sample information:"]
[null,"Sample ID","Dredge area","Type of sample ","Sample depth\n(m)","µg/kg"]
[{"$nulls":5},"ACENAPTH","ACENAPHY","ANTHRACN","BAA","BAP","BBF","BEP","BENZGHIP","BKF","C1N","C1PHEN","C2N","C3N","CHRYSENE","DBENZAH","FLUORANT","FLUORENE","INDPYR","NAPTH","PERYLENE","PHENANT","PYRENE","THC"]
[null,{"$f":"Physical_Characteristics!B19","v":"DS4"},{"$f":"Physical_Characteristics!C19","v":"Dredged pocket"},{"$f":"Physical_Characteristics!Y19","v":"Core"},{"$f":"Physical_Characteristics!Z19","v":"0.0m -0.33m"},2,2,5,23,57,55,46,79,30,5,14,8,6,25,8,31,2,71,2,16,16,35,16400]
[null,{"$f":"Physical_Characteristics!B20","v":"DS4"},{"$f":"Physical_Characteristics!C20","v":"Dredged pocket"},{"$f":"Physical_Characteristics!Y20","v":"Core"},{"$f":"Physical_Characteristics!Z20","v":"0.33m - 0.66m"},"<1","<1","<1",1,2,2,2,2,"<1","<1",1,1,"<1",1,"<1",2,"<1",1,"<1",2,1,2,6080]
[null,{"$f":"Physical_Characteristics!B21","v":"DS4"},{"$f":"Physical_Characteristics!C21","v":"Dredged pocket"},{"$f":"Physical_Characteristics!Y21","v":"Core"},{"$f":"Physical_Characteristics!Z21","v":"0.66m-1.0m"},"<1","<1","<1","<1","<1","<1","<1","<1","<1",1,"<1",1,"<1","<1","<1","<1","<1","<1","<1",2,"<1","<1",3100]
[null,{"$f":"Physical_Characteristics!B22","v":"DS3"},{"$f":"Physical_Characteristics!C22","v":"Adjacent to dredged pocket"},{"$f":"Physical_Characteristics!Y22","v":"Core"},{"$f":"Physical_Characteristics!Z22","v":"0.0m-0.5m"},19,79,183,401,441,351,356,295,204,65,462,87,118,528,56,693,65,267,44,157,466,990,1770000]
[null,{"$f":"Physical_Characteristics!B23","v":"DS3"},{"$f":"Physical_Characteristics!C23","v":"Adjacent to dredged pocket"},{"$f":"Physical_Characteristics!Y23","v":"Core"},{"$f":"Physical_Characteristics!Z23","v":"0.5m-1.0m"},201,111,188,515,577,481,480,393,284,442,821,576,459,636,82,1050,206,347,67,561,811,1398,1332000]
[null,{"$f":"Physical_Characteristics!B24","v":"DS3"},{"$f":"Physical_Characteristics!C24","v":"Adjacent to dredged pocket"},{"$f":"Physical_Characteristics!Y24","v":"Core"},{"$f":"Physical_Characteristics!Z24","v":"1.0m-1.5m"},"<1","<1","<1","<1","<1",2,2,2,"<1",4,4,7,6,2,"<1",2,1,"<1",2,19,4,3,409000]
[null,{"$f":"Physical_Characteristics!B25","v":"DS5"},{"$f":"Physical_Characteristics!C25","v":"Adjacent to dredged pocket"},{"$f":"Physical_Characteristics!Y25","v":"Core"},{"$f":"Physical_Characteristics!Z25","v":"0.0m-0.4m"},14,34,73,501,601,592,474,392,323,32,187,93,106,682,82,523,23,379,22,208,166,560,867000]
[null,{"$f":"Physical_Characteristics!B26","v":"DS5"},{"$f":"Physical_Characteristics!C26","v":"Adjacent to dredged pocket"},{"$f":"Physical_Characteristics!Y26","v":"Core"},{"$f":"Physical_Characteristics!Z26","v":"0.4m-0.9m"},25,10,40,48,54,51,44,43,26,29,336,243,859,60,9,95,56,38,16,46,120,149,10000]
[null,{"$f":"Physical_Characteristics!B27","v":"DS5"},{"$f":"Physical_Characteristics!C27","v":"Adjacent to dredged pocket"},{"$f":"Physical_Characteristics!Y27","v":"Core"},{"$f":"Physical_Characteristics!Z27","v":"0.9m-1.4m"},"<1","<1","<1",1,"<1",3,3,3,2,6,5,12,6,2,"<1",2,1,1,2,26,4,3,9330]
[null,{"$f":"Physical_Characteristics!B28","v":0},{"$f":"Physical_Characteristics!C28","v":0},{"$f":"Physical_Characteristics!Y28","v":0},{"$f":"Physical_Characteristics!Z28","v":0}]
[null,{"$f":"Physical_Characteristics!B29","v":0},{"$f":"Physical_Characteristics!C29","v":0},{"$f":"Physical_Characteristics!Y29","v":0},{"$f":"Physical_Characteristics!Z29","v":0}]
[null,{"$f":"Physical_Characteristics!B30","v":0},{"$f":"Physical_Characteristics!C30","v":0},{"$f":"Physical_Characteristics!Y30","v":0},{"$f":"Physical_Characteristics!Z30","v":0}]
[null,{"$f":"Physical_Characteristics!B31","v":0},{"$f":"Physical_Characteristics!C31","v":0},{"$f":"Physical_Characteristics!Y31","v":0},{"$f":"Physical_Characteristics!Z31","v":0}]
[null,{"$f":"Physical_Characteristics!B32","v":0},{"$f":"Physical_Characteristics!C32","v":0},{"$f":"Physical_Characteristics!Y32","v":0},{"$f":"Physical_Characteristics!Z32","v":0}]
[null,{"$f":"Physical_Characteristics!B33","v":0},{"$f":"Physical_Characteristics!C33","v":0},{"$f":"Physical_Characteristics!Y33","v":0},{"$f":"Physical_Characteristics!Z33","v":0}]
[null,{"$f":"Physical_Characteristics!B34","v":0},{"$f":"Physical_Characteristics!C34","v":0},{"$f":"Physical_Characteristics!Y34","v":0},{"$f":"Physical_Characteristics!Z34","v":0}]
[null,{"$f":"Physical_Characteristics!B35","v":0},{"$f":"Physical_Characteristics!C35","v":0},{"$f":"Physical_Characteristics!Y35","v":0},{"$f":"Physical_Characteristics!Z35","v":0}]
[null,{"$f":"Physical_Characteristics!B36","v":0},{"$f":"Physical_Characteristics!C36","v":0},{"$f":"Physical_Characteristics!Y36","v":0},{"$f":"Physical_Characteristics!Z36","v":0}]
[null,{"$f":"Physical_Characteristics!B37","v":0},{"$f":"Physical_Characteristics!C37","v":0},{"$f":"Physical_Characteristics!Y37","v":0},{"$f":"Physical_Characteristics!Z37","v":0}]
[null,{"$f":"Physical_Characteristics!B38","v":0},{"$f":"Physical_Characteristics!C38","v":0},{"$f":"Physical_Characteristics!Y38","v":0},{"$f":"Physical_Characteristics!Z38","v":0}]
[null,{"$f":"Physical_Characteristics!B39","v":0},{"$f":"Physical_Characteristics!C39","v":0},{"$f":"Physical_Characteristics!Y39","v":0},{"$f":"Physical_Characteristics!Z39","v":0}]
[null,{"$f":"Physical_Characteristics!B40","v":0},{"$f":"Physical_Characteristics!C40","v":0},{"$f":"Physical_Characteristics!Y40","v":0},{"$f":"Physical_Characteristics!Z40","v":0}]
[null,{"$f":"Physical_Characteristics!B41","v":0},{"$f":"Physical_Characteristics!C41","v":0},{"$f":"Physical_Characteristics!Y41","v":0},{"$f":"Physical_Characteristics!Z41","v":0}]
[null,{"$f":"Physical_Characteristics!B42","v":0},{"$f":"Physical_Characteristics!C42","v":0},{"$f":"Physical_Characteristics!Y42","v":0},{"$f":"Physical_Characteristics!Z42","v":0}]
[null,{"$f":"Physical_Characteristics!B43","v":0},{"$f":"Physical_Characteristics!C43","v":0},{"$f":"Physical_Characteristics!Y43","v":0},{"$f":"Physical_Characteristics!Z43","v":0}]
[null,{"$f":"Physical_Characteristics!B44","v":0},{"$f":"Physical_Characteristics!C44","v":0},{"$f":"Physical_Characteristics!Y44","v":0},{"$f":"Physical_Characteristics!Z44","v":0}]
[null,{"$f":"Physical_Characteristics!B45","v":0},{"$f":"Physical_Characteristics!C45","v":0},{"$f":"Physical_Characteristics!Y45","v":0},{"$f":"Physical_Characteristics!Z45","v":0}]
[null,{"$f":"Physical_Characteristics!B46","v":0},{"$f":"Physical_Characteristics!C46","v":0},{"$f":"Physical_Characteristics!Y46","v":0},{"$f":"Physical_Characteristics!Z46","v":0}]
[null,{"$f":"Physical_Characteristics!B47","v":0},{"$f":"Physical_Characteristics!C47","v":0},{"$f":"Physical_Characteristics!Y47","v":0},{"$f":"Physical_Characteristics!Z47","v":0}]
[null,{"$f":"Physical_Characteristics!B48","v":0},{"$f":"Physical_Characteristics!C48","v":0},{"$f":"Physical_Characteristics!Y48","v":0},{"$f":"Physical_Characteristics!Z48","v":0}]

{"sheet":"Organohalogens","index":4,"n_rows":50,"n_cols":51,"rows_kept":50,"merged":[[2,1,5,11],[18,1,19,1],[18,2,19,2],[18,3,19,3],[18,4,19,4],[19,5,19,50]]}
[null,"Organohalogens"]
[]
[null,"Explanatory Notes:\nResults above Action Level 1 will be highlighted in blue and above Action Level 2 in red.\nICES7 is the sum of PCB 28,52,101,138,153,180 and 118.\n"]
[]
[]
[]
[]
[null,"Definitions:"]
[null,"AHCH","alpha-Hexachlorcyclohexane"]
[null,"BHCH","beta-Hexachlorcyclohexane"]
[null,"GHCH","gamma-Hexachlorcyclohexane"]
[null,"DIELDRIN","Dieldrin"]
[null,"HCB","Hexachlorobenzene"]
[null,"PPDDE","p,p'-Dichorodiphenyldicloroethylene"]
[null,"PPDDT","p,p'-Dichorodiphenyltrichloroethane"]
[null,"PPTDE","p,p'-Dichorodiphenyldicloroethane"]
[]
[null,"Sample information:"]
[null,"Sample ID","Dredge area","Type of sample ","Sample depth\n(m)","PCB28","PCB52","PCB101","PCB118","PCB138","PCB153","PCB18","PCB105","PCB110","PCB128","PCB141","PCB149","PCB151","PCB156","PCB158","PCB170","PCB180","PCB183","PCB187","PCB194","PCB31","PCB44","PCB47","PCB49","PCB66","ICES7","AHCH","BHCH","GHCH","DIELDRIN","HCB","DDE","DDT","TDE","BDE100","BDE138","BDE153","BDE154","BDE17","BDE183","BDE209","BDE28","BDE47","BDE66","BDE85","BDE99"]
[{"$nulls":5},"µg/kg"]
[null,{"$f":"Physical_Characteristics!B19","v":"DS4"},{"$f":"Physical_Characteristics!C19","v":"Dredged pocket"},{"$f":"Physical_Characteristics!Y19","v":"Core"},{"$f":"Physical_Characteristics!Z19","v":"0.0m -0.33m"},"<0.08","<0.08","<0.08","<0.08","<0.08","<0.08",{"$nulls":10},"<0.08"]
[null,{"$f":"Physical_Characteristics!B20","v":"DS4"},{"$f":"Physical_Characteristics!C20","v":"Dredged pocket"},{"$f":"Physical_Characteristics!Y20","v":"Core"},{"$f":"Physical_Characteristics!Z20","v":"0.33m - 0.66m"},0.1,0.08,"<0.08","<0.08","<0.08","<0.08",{"$nulls":10},"<0.08"]
[null,{"$f":"Physical_Characteristics!B21","v":"DS4"},{"$f":"Physical_Characteristics!C21","v":"Dredged pocket"},{"$f":"Physical_Characteristics!Y21","v":"Core"},{"$f":"Physical_Characteristics!Z21","v":"0.66m-1.0m"},"<0.08","<0.08","<0.08","<0.08","<0.08","<0.08",{"$nulls":10},"<0.08"]
[null,{"$f":"Physical_Characteristics!B22","v":"DS3"},{"$f":"Physical_Characteristics!C22","v":"Adjacent to dredged pocket"},{"$f":"Physical_Characteristics!Y22","v":"Core"},{"$f":"Physical_Characteristics!Z22","v":"0.0m-0.5m"},0.16,0.18,0.22,0.21,0.31,0.3,{"$nulls":10},0.21]
[null,{"$f":"Physical_Characteristics!B23","v":"DS3"},{"$f":"Physical_Characteristics!C23","v":"Adjacent to dredged pocket"},{"$f":"Physical_Characteristics!Y23","v":"Core"},{"$f":"Physical_Characteristics!Z23","v":"0.5m-1.0m"},0.28,0.29,0.4,0.44,0.49,0.53,{"$nulls":10},0.4]
[null,{"$f":"Physical_Characteristics!B24","v":"DS3"},{"$f":"Physical_Characteristics!C24","v":"Adjacent to dredged pocket"},{"$f":"Physical_Characteristics!Y24","v":"Core"},{"$f":"Physical_Characteristics!Z24","v":"1.0m-1.5m"},0.1,0.08,"<0.08","<0.08","<0.08","<0.08",{"$nulls":10},"<0.08"]
[null,{"$f":"Physical_Characteristics!B25","v":"DS5"},{"$f":"Physical_Characteristics!C25","v":"Adjacent to dredged pocket"},{"$f":"Physical_Characteristics!Y25","v":"Core"},{"$f":"Physical_Characteristics!Z25","v":"0.0m-0.4m"},0.09,0.1,0.09,0.09,0.13,0.13,{"$nulls":10},"<0.08"]
[null,{"$f":"Physical_Characteristics!B26","v":"DS5"},{"$f":"Physical_Characteristics!C26","v":"Adjacent to dredged pocket"},{"$f":"Physical_Characteristics!Y26","v":"Core"},{"$f":"Physical_Characteristics!Z26","v":"0.4m-0.9m"},0.11,0.09,"<0.08","<0.08","<0.08","<0.08",{"$nulls":10},"<0.08"]
[null,{"$f":"Physical_Characteristics!B27","v":"DS5"},{"$f":"Physical_Characteristics!C27","v":"Adjacent to dredged pocket"},{"$f":"Physical_Characteristics!Y27","v":"Core"},{"$f":"Physical_Characteristics!Z27","v":"0.9m-1.4m"},"<0.08","<0.08","<0.08","<0.08","<0.08","<0.08",{"$nulls":10},"<0.08"]
[null,{"$f":"Physical_Characteristics!B28","v":0},{"$f":"Physical_Characteristics!C28","v":0},{"$f":"Physical_Characteristics!Y28","v":0},{"$f":"Physical_Characteristics!Z28","v":0}]
[null,{"$f":"Physical_Characteristics!B29","v":0},{"$f":"Physical_Characteristics!C29","v":0},{"$f":"Physical_Characteristics!Y29","v":0},{"$f":"Physical_Characteristics!Z29","v":0}]
[null,{"$f":"Physical_Characteristics!B30","v":0},{"$f":"Physical_Characteristics!C30","v":0},{"$f":"Physical_Characteristics!Y30","v":0},{"$f":"Physical_Characteristics!Z30","v":0}]
[null,{"$f":"Physical_Characteristics!B31","v":0},{"$f":"Physical_Characteristics!C31","v":0},{"$f":"Physical_Characteristics!Y31","v":0},{"$f":"Physical_Characteristics!Z31","v":0}]
[null,{"$f":"Physical_Characteristics!B32","v":0},{"$f":"Physical_Characteristics!C32","v":0},{"$f":"Physical_Characteristics!Y32","v":0},{"$f":"Physical_Characteristics!Z32","v":0}]
[null,{"$f":"Physical_Characteristics!B33","v":0},{"$f":"Physical_Characteristics!C33","v":0},{"$f":"Physical_Characteristics!Y33","v":0},{"$f":"Physical_Characteristics!Z33","v":0}]
[null,{"$f":"Physical_Characteristics!B34","v":0},{"$f":"Physical_Characteristics!C34","v":0},{"$f":"Physical_Characteristics!Y34","v":0},{"$f":"Physical_Characteristics!Z34","v":0}]
[null,{"$f":"Physical_Characteristics!B35","v":0},{"$f":"Physical_Characteristics!C35","v":0},{"$f":"Physical_Characteristics!Y35","v":0},{"$f":"Physical_Characteristics!Z35","v":0}]
[null,{"$f":"Physical_Characteristics!B36","v":0},{"$f":"Physical_Characteristics!C36","v":0},{"$f":"Physical_Characteristics!Y36","v":0},{"$f":"Physical_Characteristics!Z36","v":0}]
[null,{"$f":"Physical_Characteristics!B37","v":0},{"$f":"Physical_Characteristics!C37","v":0},{"$f":"Physical_Characteristics!Y37","v":0},{"$f":"Physical_Characteristics!Z37","v":0}]
[null,{"$f":"Physical_Characteristics!B38","v":0},{"$f":"Physical_Characteristics!C38","v":0},{"$f":"Physical_Characteristics!Y38","v":0},{"$f":"Physical_Characteristics!Z38","v":0}]
[null,{"$f":"Physical_Characteristics!B39","v":0},{"$f":"Physical_Characteristics!C39","v":0},{"$f":"Physical_Characteristics!Y39","v":0},{"$f":"Physical_Characteristics!Z39","v":0}]
[null,{"$f":"Physical_Characteristics!B40","v":0},{"$f":"Physical_Characteristics!C40","v":0},{"$f":"Physical_Characteristics!Y40","v":0},{"$f":"Physical_Characteristics!Z40","v":0}]
[null,{"$f":"Physical_Characteristics!B41","v":0},{"$f":"Physical_Characteristics!C41","v":0},{"$f":"Physical_Characteristics!Y41","v":0},{"$f":"Physical_Characteristics!Z41","v":0}]
[null,{"$f":"Physical_Characteristics!B42","v":0},{"$f":"Physical_Characteristics!C42","v":0},{"$f":"Physical_Characteristics!Y42","v":0},{"$f":"Physical_Characteristics!Z42","v":0}]
[null,{"$f":"Physical_Characteristics!B43","v":0},{"$f":"Physical_Characteristics!C43","v":0},{"$f":"Physical_Characteristics!Y43","v":0},{"$f":"Physical_Characteristics!Z43","v":0}]
[null,{"$f":"Physical_Characteristics!B44","v":0},{"$f":"Physical_Characteristics!C44","v":0},{"$f":"Physical_Characteristics!Y44","v":0},{"$f":"Physical_Characteristics!Z44","v":0}]
[null,{"$f":"Physical_Characteristics!B45","v":0},{"$f":"Physical_Characteristics!C45","v":0},{"$f":"Physical_Characteristics!Y45","v":0},{"$f":"Physical_Characteristics!Z45","v":0}]
[null,{"$f":"Physical_Characteristics!B46","v":0},{"$f":"Physical_Characteristics!C46","v":0},{"$f":"Physical_Characteristics!Y46","v":0},{"$f":"Physical_Characteristics!Z46","v":0}]
[null,{"$f":"Physical_Characteristics!B47","v":0},{"$f":"Physical_Characteristics!C47","v":0},{"$f":"Physical_Characteristics!Y47","v":0},{"$f":"Physical_Characteristics!Z47","v":0}]
[null,{"$f":"Physical_Characteristics!B48","v":0},{"$f":"Physical_Characteristics!C48","v":0},{"$f":"Physical_Characteristics!Y48","v":0},{"$f":"Physical_Characteristics!Z48","v":0}]

{"sheet":"PR_Details","index":5,"n_rows":98,"n_cols":6,"rows_kept":98,"merged":[[2,1,2,4],[2,5,2,8],[2,9,2,10],[4,1,8,16],[11,1,12,1],[11,2,12,2],[11,3,12,3],[11,5,12,5],[11,6,12,6],[17,2,26,2],[27,2,95,2],[97,1,104,8]]}
[null,"PR Details"]
[]
[null,"Total amount to be dredged (wet tonnes)",{"$nulls":3},{"v":55426,"d":"55,426"}]
[]
[null,"Explanatory Notes:\nThe values entered for each determinand should be an average wet weight concentration from all the samples representing the material to be disposed to sea. They should be entered in the units stated in the Unit of measurement column in the table below.\nResults above Action Level 1 will be highlighted in blue and above Action Level 2 in red.\n\n"]
[]
[]
[]
[]
[]
[null,"Average for the total dredge area:"]
[null,"Sample ID","Unit of measurement"]
[]
[null,"Total Solids","%",66.2]
[null,"Gravel","%",14.9]
[null,"Sand","%",54]
[null,"Silt","%",31.1]
[null,"Arsenic (As)","mg/kg",5.2]
[null,"Cadmium (Cd)",null,0.15]
[null,"Chromium (Cr)",null,49]
[null,"Copper (Cu)",null,204]
[null,"Mercury (Hg)",null,0.03]
[null,"Nickel (Ni)",null,84.2]
[null,"Lead (Pb)",null,8.1]
[null,"Zinc (Zn)",null,130]
[null,"Dibutyltin (DBT)",null,0.025]
[null,"Tributyltin (TBT)",null,0.032]
[null,"Acenapth","µg/kg",17]
[null,"Acenapthylene",null,15.3]
[null,"Anthracn",null,31.3]
[null,"BAA",null,94.6]
[null,"BAP",null,110.4]
[null,"BBF",null,98.1]
[null,"BEP",null,89.7]
[null,"Benzghip",null,77.8]
[null,"BKF",null,55.7]
[null,"C1N",null,37.4]
[null,"C1PHEN",null,117]
[null,"C2N",null,66.3]
[null,"C3N",null,102]
[null,"Chrysene",null,123]
[null,"Debenzah",null,15.5]
[null,"Flurant",null,152]
[null,"Fluorene",null,22.8]
[null,"Indypr",null,71.1]
[null,"napth",null,10.1]
[null,"perylene",null,66.7]
[null,"phenant",null,101]
[null,"pyrene",null,199]
[null,"THC",null,285111]
[null,"PCB28",null,0.08]
[null,"PCB52",null,0.08]
[null,"PCB101",null,0.08]
[null,"PCB118",null,0.09]
[null,"PCB138",null,0.1]
[null,"PCB153",null,0.1]
[null,"PCB18"]
[null,"PCB105"]
[null,"PCB110"]
[null,"PCB128"]
[null,"PCB141"]
[null,"PCB149"]
[null,"PCB151"]
[null,"PCB156"]
[null,"PCB158"]
[null,"PCB170"]
[null,"PCB180",null,0.08]
[null,"PCB183"]
[null,"PCB187"]
[null,"PCB194"]
[null,"PCB31"]
[null,"PCB44"]
[null,"PCB47"]
[null,"PCB49"]
[null,"PCB66"]
[null,"ICES7"]
[null,"AHCH"]
[null,"BHCH"]
[null,"GHCH"]
[null,"DIELDRIN"]
[null,"HCB"]
[null,"DDE"]
[null,"DDT"]
[null,"TDE"]
[null,"BDE100"]
[null,"BDE138"]
[null,"BDE153"]
[null,"BDE154"]
[null,"BDE17"]
[null,"BDE183"]
[null,"BDE209"]
[null,"BDE28"]
[null,"BDE47"]
[null,"BDE66"]
[null,"BDE85"]
[null,"BDE99"]
[]
[null,"Comments:\n\n"]

{"sheet":"Laboratory 1 Details","index":6,"n_rows":107,"n_cols":10,"rows_kept":107,"merged":[[2,1,4,9],[7,1,7,2],[7,3,7,9],[8,1,8,2],[8,3,8,9],[10,3,10,8],[11,3,11,8],[12,3,12,8],[13,3,13,8],[14,3,14,8],[15,3,15,8],[16,3,16,8],[17,3,17,8],[18,3,18,8],[19,3,19,8],[19,9,19,17],[20,3,20,8],[20,9,20,17],[21,3,21,8],[21,9,21,17],[22,3,22,8],[22,9,22,17],[23,3,23,8],[23,9,23,17],[24,3,24,8],[24,9,24,17],[25,3,25,8],[25,9,25,17],[26,3,26,8],[26,9,26,17],[27,3,27,8],[27,9,27,17],[28,3,28,8],[28,9,28,17],[32,1,41,2],[42,1,106,2]]}
[null,"Laboratory Details"]
[]
[null,"Explanatory Notes:\nPlease complete a separate worksheet for each laboratory (e.g. complete 'Laboartory_1' worksheet for 1 laboratory and complete 'Laboartory_2' worksheet for a second laboratory).  If there are more than 3 laboratories then please contact MS-LOT.\n"]
[]
[]
[]
[null,"Laboratory 1 Details:"]
[null,"Laboratory name:",null,"SOCOTEC"]
[null,"Year:",null,2018]
[]
[null,"LabRefMat","Q1","Does the laboratory carrying out the analyses undertake the analysis of blank samples and laboratory reference materials with each batch of samples of waste and other material dumped in the maritime area that is analysed by that laboratory?",{"$nulls":5},"Yes"]
[null,"CompAnal","Q2","Does the laboratory carrying out the analyses undertake periodic comparative analysis of laboratory reference materials and certified reference materials?",{"$nulls":5},"Yes"]
[null,"QAQC","Q3","Does the laboratory carrying out the analyses undertake the compilation of quality control charts based upon the data resulting from the analyses of the laboratory reference materials and certified reference materials, and the use of those quality control charts to monitor analytical performance in relation to all samples of dumped wastes or other materials?",{"$nulls":5},"Yes"]
[null,"InterlabCaleb","Q4","Does the laboratory carrying out the analyses undertake periodic participation in interlaboratory comparison exercises, including, where possible, international comparison exercises?",{"$nulls":5},"Yes"]
[null,"InternatCaleb","Q5","Does the laboratory carrying out the analyses undertake periodic participation in national and, where possible, international laboratory proficiency schemes?",{"$nulls":5},"Yes"]
[null,"SpikedSamples","Q6","If the answer to questions 4 or 5 is 'Yes' then does the laboratory analyse samples of substances which are provided by the organisers of the scheme?",{"$nulls":5},"Yes"]
[null,"BlindSamples","Q7","If the answer to questions 4 or 5 is 'Yes' then does the laboratory confirm that the composition of those samples is not disclosed in advance?",{"$nulls":5},"Yes"]
[null,"Ranking","Q8","If the answer to questions 4 or 5 is 'Yes' then does the laboratory confirm that the results of the scheme for each participating laboratory are made available to all participating laboratories?",{"$nulls":5},"Yes"]
[null,"FracAnal","Q9","Enter the size fraction that is analysed i.e. Whole or less than 63µm etc.",{"$nulls":5},"<63um(metals) "]
[null,"GranMeth","Q10","PSA method",{"$nulls":5},"NMBAQC"]
[null,"OCMeth","Q11","Organic Carbon method",{"$nulls":5},"carbonate removal and sulfurous acid/combustion at 800°C/NDIR,"]
[null,"MetExtrType","Q12","Method of extraction used for metal analysis",{"$nulls":5},"Aquaregia"]
[null,"MethOfDetMetals","Q13","Method of detection used for metal analysis",{"$nulls":5},"ICP-MS"]
[null,"PAHExtrType","Q14","Method of extraction used for poly aromatic hydrocarbon analysis",{"$nulls":5},"Methanol/DCM solvent extraction with silica clean up and copper clean up stages"]
[null,"MethOfDetPAH","Q15","Method of detection used for poly aromatic hydrocarbons analysis",{"$nulls":5},"GCMS"]
[null,"OHExtrType","Q16","Method of extraction used for organohalogens inc PCBs, pesticides, flame retardants etc analysis",{"$nulls":5},"Ultrasonic acetone/hexane solvent extraction"]
[null,"MethOfDetOH","Q17","Method of detection used for organohalogens inc PCBs, pesticides, flame retardants etc analysis",{"$nulls":5},"GCMSMS"]
[null,"OTExtrType","Q18","Method of extraction used for organotin analysis",{"$nulls":5},"derivatisation and solvent extraction"]
[null,"MethOfDetOT","Q19","Method of detection used for organotin analysis",{"$nulls":5},"GCMS"]
[]
[]
[{"$nulls":4},"LOD/LOQ","Precision (%)","Recovery (%)"]
[null,"mg/kg",null,"Hg",0.015,4.2,92]
[{"$nulls":3},"As",0.5,2.7,103]
[{"$nulls":3},"Cd",0.04,3.6,104]
[{"$nulls":3},"Cu",0.5,2.9,105]
[{"$nulls":3},"Pb",0.5,3,98]
[{"$nulls":3},"Zn",2,2.6,101]
[{"$nulls":3},"Cr",0.5,3.1,96]
[{"$nulls":3},"Ni",0.5,3.6,97]
[{"$nulls":3},"TBT",1E-3,12.62,72]
[{"$nulls":3},"DBT",1E-3,null,64]
[null,"µg/kg",null,"PCB28",0.1,12.56,65]
[{"$nulls":3},"PCB31"]
[{"$nulls":3},"PCB44"]
[{"$nulls":3},"PCB47"]
[{"$nulls":3},"PCB49"]
[{"$nulls":3},"PCB52",0.1,6.999,87]
[{"$nulls":3},"PCB66"]
[{"$nulls":3},"PCB101",0.1,8.43,90]
[{"$nulls":3},"PCB105"]
[{"$nulls":3},"PCB110"]
[{"$nulls":3},"PCB118",0.1,14.61,98]
[{"$nulls":3},"PCB128"]
[{"$nulls":3},"PCB138+163",0.1,12.93,105]
[{"$nulls":3},"PCB141"]
[{"$nulls":3},"PCB149"]
[{"$nulls":3},"PCB151"]
[{"$nulls":3},"PCB153",0.1,7.41,97]
[{"$nulls":3},"PCB156"]
[{"$nulls":3},"PCB158"]
[{"$nulls":3},"PCB170"]
[{"$nulls":3},"PCB180",0.1,9.85,90]
[{"$nulls":3},"PCB183"]
[{"$nulls":3},"PCB187"]
[{"$nulls":3},"PCB194"]
[{"$nulls":3},"DDE"]
[{"$nulls":3},"DDT"]
[{"$nulls":3},"DDD"]
[{"$nulls":3},"Dieldrin"]
[{"$nulls":3},"Lindane"]
[{"$nulls":3},"HCB"]
[{"$nulls":3},"BDE17"]
[{"$nulls":3},"BDE28"]
[{"$nulls":3},"BDE47"]
[{"$nulls":3},"BDE66"]
[{"$nulls":3},"BDE85"]
[{"$nulls":3},"BDE99"]
[{"$nulls":3},"BDE100"]
[{"$nulls":3},"BDE138"]
[{"$nulls":3},"BDE153"]
[{"$nulls":3},"BDE154"]
[{"$nulls":3},"BDE183"]
[{"$nulls":3},"BDE209"]
[{"$nulls":3},"ACENAPTH",1,6.68,110]
[{"$nulls":3},"ACENAPHY",1,7.74,107]
[{"$nulls":3},"ANTHRACN",1,4.95,108]
[{"$nulls":3},"BAA",1,9.8,104]
[{"$nulls":3},"BAP",1,9.07,105]
[{"$nulls":3},"BBF",1,8.44,103]
[{"$nulls":3},"BENZGHIP",1,13.46,113]
[{"$nulls":3},"BEP",1,7.9,112]
[{"$nulls":3},"BKF",1,8.9,115]
[{"$nulls":3},"C1N",1,8.27,106]
[{"$nulls":3},"C1PHEN",1,"N/A","N.D"]
[{"$nulls":3},"C2N",1,"N/A","N.D"]
[{"$nulls":3},"C3N",1,"N/A","N.D"]
[{"$nulls":3},"CHRYSENE",1,7.87,112]
[{"$nulls":3},"DBENZAH",1,19.23,99]
[{"$nulls":3},"FLUORENE",1,5.25,110]
[{"$nulls":3},"FLUORANT",1,4.36,105]
[{"$nulls":3},"INDPYR",1,17.1,102]
[{"$nulls":3},"NAPTH",1,3.02,111]
[{"$nulls":3},"PERYLENE",1,"N/A",106]
[{"$nulls":3},"PHENANT",1,5.41,117]
[{"$nulls":3},"PYRENE",1,4.29,109]
[{"$nulls":3},"THC",1,"N/A",106]

{"sheet":"Laboratory 2 Details","index":7,"n_rows":107,"n_cols":7,"rows_kept":107,"merged":[[2,1,4,9],[7,1,7,2],[7,3,7,9],[8,1,8,2],[8,3,8,9],[10,3,10,8],[11,3,11,8],[12,3,12,8],[13,3,13,8],[14,3,14,8],[15,3,15,8],[16,3,16,8],[17,3,17,8],[18,3,18,8],[19,3,19,8],[19,9,19,17],[20,3,20,8],[20,9,20,17],[21,3,21,8],[21,9,21,17],[22,3,22,8],[22,9,22,17],[23,3,23,8],[23,9,23,17],[24,3,24,8],[24,9,24,17],[25,3,25,8],[25,9,25,17],[26,3,26,8],[26,9,26,17],[27,3,27,8],[27,9,27,17],[28,3,28,8],[28,9,28,17],[32,1,41,2],[42,1,106,2]]}
[null,"Laboratory Details"]
[]
[null,"Explanatory Notes:\nPlease complete a separate worksheet for each laboratory (e.g. complete 'Laboartory_1' worksheet for 1 laboratory and complete 'Laboartory_2' worksheet for a second laboratory).  If there are more than 3 laboratories then please contact MS-LOT.\n"]
[]
[]
[]
[null,"Laboratory 2 Details:"]
[null,"Laboratory name:"]
[null,"Year:"]
[]
[null,"LabRefMat","Q1","Does the laboratory carrying out the analyses undertake the analysis of blank samples and laboratory reference materials with each batch of samples of waste and other material dumped in the maritime area that is analysed by that laboratory?"]
[null,"CompAnal","Q2","Does the laboratory carrying out the analyses undertake periodic comparative analysis of laboratory reference materials and certified reference materials?"]
[null,"QAQC","Q3","Does the laboratory carrying out the analyses undertake the compilation of quality control charts based upon the data resulting from the analyses of the laboratory reference materials and certified reference materials, and the use of those quality control charts to monitor analytical performance in relation to all samples of dumped wastes or other materials?"]
[null,"InterlabCaleb","Q4","Does the laboratory carrying out the analyses undertake periodic participation in interlaboratory comparison exercises, including, where possible, international comparison exercises?"]
[null,"InternatCaleb","Q5","Does the laboratory carrying out the analyses undertake periodic participation in national and, where possible, international laboratory proficiency schemes?"]
[null,"SpikedSamples","Q6","If the answer to questions 4 or 5 is 'Yes' then does the laboratory analyse samples of substances which are provided by the organisers of the scheme?"]
[null,"BlindSamples","Q7","If the answer to questions 4 or 5 is 'Yes' then does the laboratory confirm that the composition of those samples is not disclosed in advance?"]
[null,"Ranking","Q8","If the answer to questions 4 or 5 is 'Yes' then does the laboratory confirm that the results of the scheme for each participating laboratory are made available to all participating laboratories?"]
[null,"FracAnal","Q9","Enter the size fraction that is analysed i.e. Whole or less than 63µm etc."]
[null,"GranMeth","Q10","PSA method"]
[null,"OCMeth","Q11","Organic Carbon method"]
[null,"MetExtrType","Q12","Method of extraction used for metal analysis"]
[null,"MethOfDetMetals","Q13","Method of detection used for metal analysis"]
[null,"PAHExtrType","Q14","Method of extraction used for poly aromatic hydrocarbon analysis"]
[null,"MethOfDetPAH","Q15","Method of detection used for poly aromatic hydrocarbons analysis"]
[null,"OHExtrType","Q16","Method of extraction used for organohalogens inc PCBs, pesticides, flame retardants etc analysis"]
[null,"MethOfDetOH","Q17","Method of detection used for organohalogens inc PCBs, pesticides, flame retardants etc analysis"]
[null,"OTExtrType","Q18","Method of extraction used for organotin analysis"]
[null,"MethOfDetOT","Q19","Method of detection used for organotin analysis"]
[]
[]
[{"$nulls":4},"LOD/LOQ","Precision (%)","Recovery (%)"]
[null,"mg/kg",null,"Hg"]
[{"$nulls":3},"As"]
[{"$nulls":3},"Cd"]
[{"$nulls":3},"Cu"]
[{"$nulls":3},"Pb"]
[{"$nulls":3},"Zn"]
[{"$nulls":3},"Cr"]
[{"$nulls":3},"Ni"]
[{"$nulls":3},"TBT"]
[{"$nulls":3},"DBT"]
[null,"µg/kg",null,"PCB28"]
[{"$nulls":3},"PCB31"]
[{"$nulls":3},"PCB44"]
[{"$nulls":3},"PCB47"]
[{"$nulls":3},"PCB49"]
[{"$nulls":3},"PCB52"]
[{"$nulls":3},"PCB66"]
[{"$nulls":3},"PCB101"]
[{"$nulls":3},"PCB105"]
[{"$nulls":3},"PCB110"]
[{"$nulls":3},"PCB118"]
[{"$nulls":3},"PCB128"]
[{"$nulls":3},"PCB138+163"]
[{"$nulls":3},"PCB141"]
[{"$nulls":3},"PCB149"]
[{"$nulls":3},"PCB151"]
[{"$nulls":3},"PCB153"]
[{"$nulls":3},"PCB156"]
[{"$nulls":3},"PCB158"]
[{"$nulls":3},"PCB170"]
[{"$nulls":3},"PCB180"]
[{"$nulls":3},"PCB183"]
[{"$nulls":3},"PCB187"]
[{"$nulls":3},"PCB194"]
[{"$nulls":3},"DDE"]
[{"$nulls":3},"DDT"]
[{"$nulls":3},"DDD"]
[{"$nulls":3},"Dieldrin"]
[{"$nulls":3},"Lindane"]
[{"$nulls":3},"HCB"]
[{"$nulls":3},"BDE17"]
[{"$nulls":3},"BDE28"]
[{"$nulls":3},"BDE47"]
[{"$nulls":3},"BDE66"]
[{"$nulls":3},"BDE85"]
[{"$nulls":3},"BDE99"]
[{"$nulls":3},"BDE100"]
[{"$nulls":3},"BDE138"]
[{"$nulls":3},"BDE153"]
[{"$nulls":3},"BDE154"]
[{"$nulls":3},"BDE183"]
[{"$nulls":3},"BDE209"]
[{"$nulls":3},"ACENAPTH"]
[{"$nulls":3},"ACENAPHY"]
[{"$nulls":3},"ANTHRACN"]
[{"$nulls":3},"BAA"]
[{"$nulls":3},"BAP"]
[{"$nulls":3},"BBF"]
[{"$nulls":3},"BENZGHIP"]
[{"$nulls":3},"BEP"]
[{"$nulls":3},"BKF"]
[{"$nulls":3},"C1N"]
[{"$nulls":3},"C1PHEN"]
[{"$nulls":3},"C2N"]
[{"$nulls":3},"C3N"]
[{"$nulls":3},"CHRYSENE"]
[{"$nulls":3},"DBENZAH"]
[{"$nulls":3},"FLUORENE"]
[{"$nulls":3},"FLUORANT"]
[{"$nulls":3},"INDPYR"]
[{"$nulls":3},"NAPTH"]
[{"$nulls":3},"PERYLENE"]
[{"$nulls":3},"PHENANT"]
[{"$nulls":3},"PYRENE"]
[{"$nulls":3},"THC"]

{"sheet":"Laboratory 3 Details","index":8,"n_rows":107,"n_cols":7,"rows_kept":107,"merged":[[2,1,4,9],[7,1,7,2],[7,3,7,9],[8,1,8,2],[8,3,8,9],[10,3,10,8],[11,3,11,8],[12,3,12,8],[13,3,13,8],[14,3,14,8],[15,3,15,8],[16,3,16,8],[17,3,17,8],[18,3,18,8],[19,3,19,8],[19,9,19,17],[20,3,20,8],[20,9,20,17],[21,3,21,8],[21,9,21,17],[22,3,22,8],[22,9,22,17],[23,3,23,8],[23,9,23,17],[24,3,24,8],[24,9,24,17],[25,3,25,8],[25,9,25,17],[26,3,26,8],[26,9,26,17],[27,3,27,8],[27,9,27,17],[28,3,28,8],[28,9,28,17],[32,1,41,2],[42,1,106,2]]}
[null,"Laboratory Details"]
[]
[null,"Explanatory Notes:\nPlease complete a separate worksheet for each laboratory (e.g. complete 'Laboartory_1' worksheet for 1 laboratory and complete 'Laboartory_2' worksheet for a second laboratory).  If there are more than 3 laboratories then please contact MS-LOT.\n"]
[]
[]
[]
[null,"Laboratory 3 Details:"]
[null,"Laboratory name:"]
[null,"Year:"]
[]
[null,"LabRefMat","Q1","Does the laboratory carrying out the analyses undertake the analysis of blank samples and laboratory reference materials with each batch of samples of waste and other material dumped in the maritime area that is analysed by that laboratory?"]
[null,"CompAnal","Q2","Does the laboratory carrying out the analyses undertake periodic comparative analysis of laboratory reference materials and certified reference materials?"]
[null,"QAQC","Q3","Does the laboratory carrying out the analyses undertake the compilation of quality control charts based upon the data resulting from the analyses of the laboratory reference materials and certified reference materials, and the use of those quality control charts to monitor analytical performance in relation to all samples of dumped wastes or other materials?"]
[null,"InterlabCaleb","Q4","Does the laboratory carrying out the analyses undertake periodic participation in interlaboratory comparison exercises, including, where possible, international comparison exercises?"]
[null,"InternatCaleb","Q5","Does the laboratory carrying out the analyses undertake periodic participation in national and, where possible, international laboratory proficiency schemes?"]
[null,"SpikedSamples","Q6","If the answer to questions 4 or 5 is 'Yes' then does the laboratory analyse samples of substances which are provided by the organisers of the scheme?"]
[null,"BlindSamples","Q7","If the answer to questions 4 or 5 is 'Yes' then does the laboratory confirm that the composition of those samples is not disclosed in advance?"]
[null,"Ranking","Q8","If the answer to questions 4 or 5 is 'Yes' then does the laboratory confirm that the results of the scheme for each participating laboratory are made available to all participating laboratories?"]
[null,"FracAnal","Q9","Enter the size fraction that is analysed i.e. Whole or less than 63µm etc."]
[null,"GranMeth","Q10","PSA method"]
[null,"OCMeth","Q11","Organic Carbon method"]
[null,"MetExtrType","Q12","Method of extraction used for metal analysis"]
[null,"MethOfDetMetals","Q13","Method of detection used for metal analysis"]
[null,"PAHExtrType","Q14","Method of extraction used for poly aromatic hydrocarbon analysis"]
[null,"MethOfDetPAH","Q15","Method of detection used for poly aromatic hydrocarbons analysis"]
[null,"OHExtrType","Q16","Method of extraction used for organohalogens inc PCBs, pesticides, flame retardants etc analysis"]
[null,"MethOfDetOH","Q17","Method of detection used for organohalogens inc PCBs, pesticides, flame retardants etc analysis"]
[null,"OTExtrType","Q18","Method of extraction used for organotin analysis"]
[null,"MethOfDetOT","Q19","Method of detection used for organotin analysis"]
[]
[]
[{"$nulls":4},"LOD/LOQ","Precision (%)","Recovery (%)"]
[null,"mg/kg",null,"Hg"]
[{"$nulls":3},"As"]
[{"$nulls":3},"Cd"]
[{"$nulls":3},"Cu"]
[{"$nulls":3},"Pb"]
[{"$nulls":3},"Zn"]
[{"$nulls":3},"Cr"]
[{"$nulls":3},"Ni"]
[{"$nulls":3},"TBT"]
[{"$nulls":3},"DBT"]
[null,"µg/kg",null,"PCB28"]
[{"$nulls":3},"PCB31"]
[{"$nulls":3},"PCB44"]
[{"$nulls":3},"PCB47"]
[{"$nulls":3},"PCB49"]
[{"$nulls":3},"PCB52"]
[{"$nulls":3},"PCB66"]
[{"$nulls":3},"PCB101"]
[{"$nulls":3},"PCB105"]
[{"$nulls":3},"PCB110"]
[{"$nulls":3},"PCB118"]
[{"$nulls":3},"PCB128"]
[{"$nulls":3},"PCB138+163"]
[{"$nulls":3},"PCB141"]
[{"$nulls":3},"PCB149"]
[{"$nulls":3},"PCB151"]
[{"$nulls":3},"PCB153"]
[{"$nulls":3},"PCB156"]
[{"$nulls":3},"PCB158"]
[{"$nulls":3},"PCB170"]
[{"$nulls":3},"PCB180"]
[{"$nulls":3},"PCB183"]
[{"$nulls":3},"PCB187"]
[{"$nulls":3},"PCB194"]
[{"$nulls":3},"DDE"]
[{"$nulls":3},"DDT"]
[{"$nulls":3},"DDD"]
[{"$nulls":3},"Dieldrin"]
[{"$nulls":3},"Lindane"]
[{"$nulls":3},"HCB"]
[{"$nulls":3},"BDE17"]
[{"$nulls":3},"BDE28"]
[{"$nulls":3},"BDE47"]
[{"$nulls":3},"BDE66"]
[{"$nulls":3},"BDE85"]
[{"$nulls":3},"BDE99"]
[{"$nulls":3},"BDE100"]
[{"$nulls":3},"BDE138"]
[{"$nulls":3},"BDE153"]
[{"$nulls":3},"BDE154"]
[{"$nulls":3},"BDE183"]
[{"$nulls":3},"BDE209"]
[{"$nulls":3},"ACENAPTH"]
[{"$nulls":3},"ACENAPHY"]
[{"$nulls":3},"ANTHRACN"]
[{"$nulls":3},"BAA"]
[{"$nulls":3},"BAP"]
[{"$nulls":3},"BBF"]
[{"$nulls":3},"BENZGHIP"]
[{"$nulls":3},"BEP"]
[{"$nulls":3},"BKF"]
[{"$nulls":3},"C1N"]
[{"$nulls":3},"C1PHEN"]
[{"$nulls":3},"C2N"]
[{"$nulls":3},"C3N"]
[{"$nulls":3},"CHRYSENE"]
[{"$nulls":3},"DBENZAH"]
[{"$nulls":3},"FLUORENE"]
[{"$nulls":3},"FLUORANT"]
[{"$nulls":3},"INDPYR"]
[{"$nulls":3},"NAPTH"]
[{"$nulls":3},"PERYLENE"]
[{"$nulls":3},"PHENANT"]
[{"$nulls":3},"PYRENE"]
[{"$nulls":3},"THC"]

{"sheet":"Sheet1","index":9,"n_rows":2,"n_cols":2,"rows_kept":2}
["Grab","Yes"]
["Core","No"]